[Event "Titled Tuesday Blitz March 14 Late 2023"]
[White "Fus, Jakub"]
[Black "TimGrutter03"]
[WhiteFideId "1193023"]
[WhiteElo "2335"]
[BlackElo "2520"]
[Result "0-1"]
[Round "09"]
[TimeControl "180+2"]
[Date "2023.03.14"]
[WhiteClock "0:00:17"]
[BlackClock "0:00:02"]

1. e4 {[%clk 0:02:57]}  g6 {[%clk 0:03:00]} 2. d4 {[%clk 0:02:55]}  Bg7 {[%clk 0:03:01]} 3. Nf3 {[%clk 0:02:55]}  d6 {[%clk 0:03:01]} 4. Bc4 {[%clk 0:02:55]}  c6 {[%clk 0:03:01]} 5. Bb3 {[%clk 0:02:54]}  a5 {[%clk 0:02:56]} 6. a4 {[%clk 0:02:53]}  Nf6 {[%clk 0:02:51]} 7. Qe2 {[%clk 0:02:53]}  O-O {[%clk 0:02:50]} 8. O-O {[%clk 0:02:47]}  Bg4 {[%clk 0:02:39]} 9. Nbd2 {[%clk 0:02:47]}  e5 {[%clk 0:02:38]} 10. dxe5 {[%clk 0:02:44]}  dxe5 {[%clk 0:02:39]} 11. h3 {[%clk 0:02:45]}  Bxf3 {[%clk 0:02:38]} 12. Nxf3 {[%clk 0:02:45]}  Nbd7 {[%clk 0:02:38]} 13. Rd1 {[%clk 0:02:44]}  Qe7 {[%clk 0:02:34]} 14. Bg5 {[%clk 0:02:39]}  h6 {[%clk 0:02:33]} 15. Bh4 {[%clk 0:02:39]}  g5 {[%clk 0:02:30]} 16. Bg3 {[%clk 0:02:39]}  Nh5 {[%clk 0:02:28]} 17. Nh2 {[%clk 0:02:34]}  Nf4 {[%clk 0:02:12]} 18. Qc4 {[%clk 0:02:21]}  Nc5 {[%clk 0:02:05]} 19. Ng4 {[%clk 0:02:20]}  Nxb3 {[%clk 0:01:56]} 20. Qxb3 {[%clk 0:02:20]}  Rad8 {[%clk 0:01:47]} 21. Ne3 {[%clk 0:02:19]}  Ne2+ {[%clk 0:01:37]} 22. Kh2 {[%clk 0:02:17]}  Nd4 {[%clk 0:01:38]} 23. Qc4 {[%clk 0:02:12]}  h5 {[%clk 0:01:37]} 24. Kh1 {[%clk 0:02:07]}  Qe6 {[%clk 0:01:15]} 25. Qc5 {[%clk 0:01:55]}  g4 {[%clk 0:01:07]} 26. c3 {[%clk 0:01:35]}  Nb3 {[%clk 0:01:05]} 27. Qb6 {[%clk 0:01:35]}  Rxd1+ {[%clk 0:00:58]} 28. Rxd1 {[%clk 0:01:36]}  gxh3 {[%clk 0:00:59]} 29. Rd8 {[%clk 0:01:34]}  hxg2+ {[%clk 0:00:55]} 30. Kxg2 {[%clk 0:01:35]}  h4 {[%clk 0:00:41]} 31. Bxh4 {[%clk 0:01:31]}  Qg6+ {[%clk 0:00:41]} 32. Kf1 {[%clk 0:01:21]}  Qxe4 {[%clk 0:00:36]} 33. Rxf8+ {[%clk 0:01:14]}  Bxf8 {[%clk 0:00:37]} 34. Qxb3 {[%clk 0:01:13]}  Qxh4 {[%clk 0:00:36]} 35. Qxb7 {[%clk 0:01:13]}  Qxa4 {[%clk 0:00:33]} 36. Qd7 {[%clk 0:01:01]}  Qe4 {[%clk 0:00:24]} 37. Ke2 {[%clk 0:00:57]}  Bh6 {[%clk 0:00:19]} 38. Qg4+ {[%clk 0:00:50]}  Qxg4+ {[%clk 0:00:18]} 39. Nxg4 {[%clk 0:00:51]}  Bf4 {[%clk 0:00:14]} 40. Nf6+ {[%clk 0:00:45]}  Kg7 {[%clk 0:00:14]} 41. Nd7 {[%clk 0:00:45]}  f5 {[%clk 0:00:11]} 42. b3 {[%clk 0:00:42]}  Kf7 {[%clk 0:00:09]} 43. Nb8 {[%clk 0:00:32]}  c5 {[%clk 0:00:09]} 44. c4 {[%clk 0:00:32]}  e4 {[%clk 0:00:06]} 45. Nd7 {[%clk 0:00:30]}  Bd6 {[%clk 0:00:04]} 46. Nb6 {[%clk 0:00:28]}  Ke6 {[%clk 0:00:02]} 47. Nd5 {[%clk 0:00:28]}  Ke5 {[%clk 0:00:03]} 48. Ke3 {[%clk 0:00:28]}  Bf8 {[%clk 0:00:01]} 49. Kd2 {[%clk 0:00:24]}  Bh6+ {[%clk 0:00:01]} 50. Kc2 {[%clk 0:00:24]}  f4 {[%clk 0:00:01]} 51. Kd2 {[%clk 0:00:20]}  Kd4 {[%clk 0:00:02]} 52. Ke2 {[%clk 0:00:17]}  f3+ {[%clk 0:00:02]} 53. Kd1 {[%clk 0:00:18]}  Kd3 {[%clk 0:00:02]} 54. Nf6 {[%clk 0:00:18]}  e3 {[%clk 0:00:02]} 55. fxe3 {[%clk 0:00:17]}  f2 {[%clk 0:00:02]} 0-1


[Site "https://www.chess.com"]

[Event "Titled Tuesday Blitz March 14 Late 2023"]
[White "Diaz Perez, Michel Alejandro"]
[Black "Dinu, Dumitru-Daniel"]
[WhiteFideId "3517179"]
[BlackFideId "1208403"]
[WhiteElo "2333"]
[BlackElo "2240"]
[Result "1-0"]
[Round "09"]
[TimeControl "180+2"]
[Date "2023.03.14"]
[WhiteClock "0:00:52"]
[BlackClock "0:00:07"]

1. Nf3 {[%clk 0:03:00]}  Nf6 {[%clk 0:02:59]} 2. c4 {[%clk 0:03:01]}  e6 {[%clk 0:02:59]} 3. e3 {[%clk 0:03:00]}  b6 {[%clk 0:02:59]} 4. a3 {[%clk 0:02:58]}  Bb7 {[%clk 0:02:59]} 5. Qc2 {[%clk 0:02:59]}  Be7 {[%clk 0:02:57]} 6. b3 {[%clk 0:02:59]}  O-O {[%clk 0:02:56]} 7. Bb2 {[%clk 0:02:59]}  c5 {[%clk 0:02:57]} 8. Bd3 {[%clk 0:03:00]}  h6 {[%clk 0:02:54]} 9. Be2 {[%clk 0:02:57]}  Nc6 {[%clk 0:02:53]} 10. O-O {[%clk 0:02:54]}  Rc8 {[%clk 0:02:53]} 11. Nc3 {[%clk 0:02:50]}  d5 {[%clk 0:02:52]} 12. d3 {[%clk 0:02:39]}  Qd7 {[%clk 0:02:44]} 13. Rfe1 {[%clk 0:02:32]}  Rfd8 {[%clk 0:02:42]} 14. Bf1 {[%clk 0:02:32]}  d4 {[%clk 0:02:41]} 15. exd4 {[%clk 0:02:32]}  Nxd4 {[%clk 0:02:38]} 16. Nxd4 {[%clk 0:02:31]}  cxd4 {[%clk 0:02:38]} 17. Ne2 {[%clk 0:02:31]}  e5 {[%clk 0:02:35]} 18. Ng3 {[%clk 0:02:31]}  Bd6 {[%clk 0:02:32]} 19. Re2 {[%clk 0:02:11]}  e4 {[%clk 0:02:22]} 20. Ree1 {[%clk 0:02:02]}  Bxg3 {[%clk 0:02:11]} 21. hxg3 {[%clk 0:02:00]}  Re8 {[%clk 0:01:43]} 22. dxe4 {[%clk 0:01:59]}  Bxe4 {[%clk 0:01:38]} 23. Qd2 {[%clk 0:01:58]}  Rcd8 {[%clk 0:01:37]} 24. Rad1 {[%clk 0:01:55]}  Bg6 {[%clk 0:01:27]} 25. Rxe8+ {[%clk 0:01:51]}  Qxe8 {[%clk 0:01:25]} 26. Bxd4 {[%clk 0:01:45]}  Bh5 {[%clk 0:01:13]} 27. f3 {[%clk 0:01:42]}  Ne4 {[%clk 0:01:05]} 28. Qe1 {[%clk 0:01:37]}  Rd6 {[%clk 0:00:28]} 29. g4 {[%clk 0:01:34]}  Qd8 {[%clk 0:00:23]} 30. Qxe4 {[%clk 0:01:31]}  Bg6 {[%clk 0:00:22]} 31. Qe3 {[%clk 0:01:24]}  Bc2 {[%clk 0:00:21]} 32. Rd2 {[%clk 0:01:22]}  Bxb3 {[%clk 0:00:21]} 33. Bc3 {[%clk 0:01:06]}  Rxd2 {[%clk 0:00:16]} 34. Bxd2 {[%clk 0:01:07]}  Ba4 {[%clk 0:00:15]} 35. Bc3 {[%clk 0:01:07]}  Qd1 {[%clk 0:00:13]} 36. g5 {[%clk 0:00:59]}  hxg5 {[%clk 0:00:09]} 37. Qxg5 {[%clk 0:01:00]}  g6 {[%clk 0:00:07]} 38. Qh6 {[%clk 0:00:52]} 1-0


[Site "https://www.chess.com"]

[Event "Titled Tuesday Blitz March 14 Late 2023"]
[White "Mendonca, Leon Luke"]
[Black "Karas, Marek"]
[WhiteFideId "35028561"]
[BlackFideId "14928558"]
[WhiteElo "2464"]
[BlackElo "2233"]
[Result "1/2-1/2"]
[Round "09"]
[TimeControl "180+2"]
[Date "2023.03.14"]
[WhiteClock "0:00:05"]
[BlackClock "0:00:09"]

1. e4 {[%clk 0:03:00]}  e6 {[%clk 0:02:59]} 2. d3 {[%clk 0:02:58]}  d5 {[%clk 0:02:59]} 3. Nd2 {[%clk 0:02:58]}  Nf6 {[%clk 0:02:59]} 4. Ngf3 {[%clk 0:02:58]}  c5 {[%clk 0:02:59]} 5. g3 {[%clk 0:02:58]}  Nc6 {[%clk 0:03:00]} 6. Bg2 {[%clk 0:02:59]}  Be7 {[%clk 0:03:00]} 7. O-O {[%clk 0:03:00]}  O-O {[%clk 0:03:00]} 8. Re1 {[%clk 0:02:59]}  b5 {[%clk 0:03:00]} 9. h4 {[%clk 0:02:58]}  Bb7 {[%clk 0:02:59]} 10. e5 {[%clk 0:02:58]}  Nd7 {[%clk 0:02:59]} 11. Nf1 {[%clk 0:02:58]}  Qb6 {[%clk 0:02:58]} 12. N1h2 {[%clk 0:02:57]}  Rfc8 {[%clk 0:02:58]} 13. h5 {[%clk 0:02:57]}  h6 {[%clk 0:02:58]} 14. Ng4 {[%clk 0:02:57]}  Bf8 {[%clk 0:02:58]} 15. Bf4 {[%clk 0:02:56]}  a5 {[%clk 0:02:57]} 16. Qd2 {[%clk 0:02:56]}  Qd8 {[%clk 0:02:57]} 17. Ngh2 {[%clk 0:02:38]}  Nd4 {[%clk 0:02:49]} 18. g4 {[%clk 0:02:34]}  Nxf3+ {[%clk 0:02:47]} 19. Nxf3 {[%clk 0:02:34]}  d4 {[%clk 0:02:36]} 20. g5 {[%clk 0:02:23]}  hxg5 {[%clk 0:02:31]} 21. Nxg5 {[%clk 0:02:24]}  Bxg2 {[%clk 0:02:30]} 22. Kxg2 {[%clk 0:02:25]}  c4 {[%clk 0:02:15]} 23. Qe2 {[%clk 0:02:25]}  cxd3 {[%clk 0:01:58]} 24. cxd3 {[%clk 0:02:26]}  Nc5 {[%clk 0:01:48]} 25. Qf3 {[%clk 0:02:20]}  Qd5 {[%clk 0:01:45]} 26. Qxd5 {[%clk 0:02:19]}  exd5 {[%clk 0:01:45]} 27. Red1 {[%clk 0:02:19]}  Ne6 {[%clk 0:01:43]} 28. Nxe6 {[%clk 0:02:18]}  fxe6 {[%clk 0:01:43]} 29. Rac1 {[%clk 0:02:18]}  Kf7 {[%clk 0:01:37]} 30. Kg3 {[%clk 0:02:18]}  a4 {[%clk 0:01:32]} 31. Kg4 {[%clk 0:02:18]}  a3 {[%clk 0:01:25]} 32. b3 {[%clk 0:02:18]}  Bb4 {[%clk 0:01:25]} 33. Kf3 {[%clk 0:02:00]}  Rc3 {[%clk 0:01:16]} 34. Ke2 {[%clk 0:01:56]}  Rac8 {[%clk 0:01:08]} 35. Rxc3 {[%clk 0:01:49]}  dxc3 {[%clk 0:01:09]} 36. d4 {[%clk 0:01:40]}  Be7 {[%clk 0:00:59]} 37. Kd3 {[%clk 0:01:29]}  b4 {[%clk 0:00:56]} 38. Rh1 {[%clk 0:01:28]}  Rh8 {[%clk 0:00:54]} 39. Rh3 {[%clk 0:01:26]}  Rh7 {[%clk 0:00:45]} 40. Be3 {[%clk 0:01:23]}  Ke8 {[%clk 0:00:42]} 41. Ke2 {[%clk 0:01:20]}  g6 {[%clk 0:00:41]} 42. h6 {[%clk 0:01:19]}  g5 {[%clk 0:00:38]} 43. f4 {[%clk 0:00:57]}  g4 {[%clk 0:00:31]} 44. Rh5 {[%clk 0:00:54]}  Kf7 {[%clk 0:00:29]} 45. f5 {[%clk 0:00:51]}  exf5 {[%clk 0:00:29]} 46. Rxf5+ {[%clk 0:00:52]}  Kg6 {[%clk 0:00:29]} 47. Rf4 {[%clk 0:00:48]}  Kh5 {[%clk 0:00:20]} 48. Rf1 {[%clk 0:00:43]}  Kg6 {[%clk 0:00:16]} 49. Rf4 {[%clk 0:00:41]}  Kh5 {[%clk 0:00:16]} 50. Rf1 {[%clk 0:00:13]}  Kg6 {[%clk 0:00:16]} 51. Rg1 {[%clk 0:00:14]}  Kh5 {[%clk 0:00:13]} 52. Rh1+ {[%clk 0:00:11]}  Kg6 {[%clk 0:00:13]} 53. Kd3 {[%clk 0:00:06]}  Bg5 {[%clk 0:00:12]} 54. Bxg5 {[%clk 0:00:03]}  Kxg5 {[%clk 0:00:13]} 55. e6 {[%clk 0:00:04]}  Kf6 {[%clk 0:00:13]} 56. Rh4 {[%clk 0:00:03]}  Kxe6 {[%clk 0:00:13]} 57. Rxg4 {[%clk 0:00:03]}  Rxh6 {[%clk 0:00:13]} 58. Rg2 {[%clk 0:00:04]}  Rh1 {[%clk 0:00:10]} 59. Re2+ {[%clk 0:00:03]}  Kd6 {[%clk 0:00:10]} 60. Rg2 {[%clk 0:00:02]}  Rd1+ {[%clk 0:00:09]} 61. Ke3 {[%clk 0:00:03]}  Rb1 {[%clk 0:00:08]} 62. Kd3 {[%clk 0:00:02]}  Rb2 {[%clk 0:00:08]} 63. Rg6+ {[%clk 0:00:03]}  Ke7 {[%clk 0:00:08]} 64. Rg7+ {[%clk 0:00:03]}  Kf6 {[%clk 0:00:08]} 65. Rb7 {[%clk 0:00:03]}  c2 {[%clk 0:00:05]} 66. Kd2 {[%clk 0:00:04]}  Kf5 {[%clk 0:00:05]} 67. Rxb4 {[%clk 0:00:04]}  Ke4 {[%clk 0:00:05]} 68. Ra4 {[%clk 0:00:02]}  Rxa2 {[%clk 0:00:05]} 69. b4 {[%clk 0:00:02]}  Rb2 {[%clk 0:00:05]} 70. Rxa3 {[%clk 0:00:02]}  Kxd4 {[%clk 0:00:04]} 71. Kc1 {[%clk 0:00:02]}  Rxb4 {[%clk 0:00:04]} 72. Kxc2 {[%clk 0:00:03]}  Ke4 {[%clk 0:00:04]} 73. Kd2 {[%clk 0:00:03]}  d4 {[%clk 0:00:04]} 74. Kc2 {[%clk 0:00:02]}  Rc4+ {[%clk 0:00:04]} 75. Kd2 {[%clk 0:00:03]}  Rc5 {[%clk 0:00:05]} 76. Rh3 {[%clk 0:00:03]}  Rf5 {[%clk 0:00:04]} 77. Rh4+ {[%clk 0:00:03]}  Kd5 {[%clk 0:00:04]} 78. Kd3 {[%clk 0:00:04]}  Rf3+ {[%clk 0:00:04]} 79. Ke2 {[%clk 0:00:04]}  Re3+ {[%clk 0:00:04]} 80. Kd2 {[%clk 0:00:05]}  Kc4 {[%clk 0:00:05]} 81. Rh8 {[%clk 0:00:02]}  Rd3+ {[%clk 0:00:06]} 82. Kc2 {[%clk 0:00:02]}  Rc3+ {[%clk 0:00:06]} 83. Kd2 {[%clk 0:00:03]}  Ra3 {[%clk 0:00:07]} 84. Rc8+ {[%clk 0:00:03]}  Kd5 {[%clk 0:00:07]} 85. Rd8+ {[%clk 0:00:04]}  Kc4 {[%clk 0:00:08]} 86. Rc8+ {[%clk 0:00:04]}  Kd5 {[%clk 0:00:08]} 87. Rd8+ {[%clk 0:00:05]}  Kc4 {[%clk 0:00:09]} 88. Rc8+ {[%clk 0:00:05]} 1/2-1/2


[Site "https://www.chess.com"]

[Event "Titled Tuesday Blitz March 14 Late 2023"]
[White "Rangel, Daniel"]
[Black "Kurtz, Eric M"]
[WhiteFideId "2124475"]
[BlackFideId "30939763"]
[WhiteElo "2256"]
[BlackElo "2576"]
[Result "0-1"]
[Round "09"]
[TimeControl "180+2"]
[Date "2023.03.14"]
[WhiteClock "0:00:05"]
[BlackClock "0:00:12"]

1. c4 {[%clk 0:03:00]}  c5 {[%clk 0:02:59]} 2. g3 {[%clk 0:03:00]}  g6 {[%clk 0:02:59]} 3. Bg2 {[%clk 0:03:00]}  Bg7 {[%clk 0:02:59]} 4. Nc3 {[%clk 0:03:01]}  e6 {[%clk 0:03:00]} 5. e3 {[%clk 0:03:02]}  Ne7 {[%clk 0:03:00]} 6. Nge2 {[%clk 0:03:02]}  Nbc6 {[%clk 0:03:01]} 7. d3 {[%clk 0:03:02]}  O-O {[%clk 0:03:00]} 8. O-O {[%clk 0:03:01]}  d6 {[%clk 0:03:01]} 9. b3 {[%clk 0:03:01]}  b6 {[%clk 0:03:01]} 10. Bb2 {[%clk 0:03:01]}  Bb7 {[%clk 0:03:00]} 11. d4 {[%clk 0:03:01]}  cxd4 {[%clk 0:03:00]} 12. Nxd4 {[%clk 0:03:00]}  Nxd4 {[%clk 0:03:00]} 13. Bxb7 {[%clk 0:02:57]}  Rb8 {[%clk 0:03:01]} 14. Bg2 {[%clk 0:02:53]}  Ndf5 {[%clk 0:03:01]} 15. Qd2 {[%clk 0:02:51]}  h5 {[%clk 0:02:07]} 16. Rad1 {[%clk 0:02:38]}  a6 {[%clk 0:01:32]} 17. Ne4 {[%clk 0:02:33]}  Bxb2 {[%clk 0:01:27]} 18. Qxb2 {[%clk 0:02:32]}  e5 {[%clk 0:01:26]} 19. Rd3 {[%clk 0:02:16]}  Qc7 {[%clk 0:01:26]} 20. Rfd1 {[%clk 0:02:14]}  Rbd8 {[%clk 0:01:21]} 21. Qa3 {[%clk 0:02:07]}  Nc8 {[%clk 0:01:10]} 22. Bh3 {[%clk 0:01:49]}  a5 {[%clk 0:01:07]} 23. Bxf5 {[%clk 0:01:35]}  gxf5 {[%clk 0:01:08]} 24. Nxd6 {[%clk 0:01:33]}  Nxd6 {[%clk 0:00:59]} 25. Rxd6 {[%clk 0:01:34]}  Qe7 {[%clk 0:00:58]} 26. c5 {[%clk 0:01:24]}  bxc5 {[%clk 0:00:57]} 27. Qxc5 {[%clk 0:01:25]}  Rfe8 {[%clk 0:00:44]} 28. Rxd8 {[%clk 0:01:13]}  Qxc5 {[%clk 0:00:43]} 29. Rxe8+ {[%clk 0:01:13]}  Kg7 {[%clk 0:00:44]} 30. Red8 {[%clk 0:01:14]}  h4 {[%clk 0:00:41]} 31. R8d5 {[%clk 0:01:10]}  Qc3 {[%clk 0:00:40]} 32. Kg2 {[%clk 0:01:05]}  Kg6 {[%clk 0:00:28]} 33. R1d3 {[%clk 0:00:55]}  Qc1 {[%clk 0:00:22]} 34. gxh4 {[%clk 0:00:39]}  Qc6 {[%clk 0:00:18]} 35. e4 {[%clk 0:00:31]}  f6 {[%clk 0:00:17]} 36. f3 {[%clk 0:00:11]}  fxe4 {[%clk 0:00:17]} 37. fxe4 {[%clk 0:00:11]}  Qc2+ {[%clk 0:00:18]} 38. Kg3 {[%clk 0:00:10]}  Qxa2 {[%clk 0:00:17]} 39. Rd6 {[%clk 0:00:10]}  Qb1 {[%clk 0:00:17]} 40. Rf3 {[%clk 0:00:09]}  Qg1+ {[%clk 0:00:17]} 41. Kh3 {[%clk 0:00:09]}  Kg7 {[%clk 0:00:15]} 42. Rdxf6 {[%clk 0:00:09]}  Qb1 {[%clk 0:00:15]} 43. R6f5 {[%clk 0:00:08]}  Qxe4 {[%clk 0:00:15]} 44. Rg3+ {[%clk 0:00:08]}  Kh7 {[%clk 0:00:15]} 45. Rfg5 {[%clk 0:00:08]}  Kh6 {[%clk 0:00:14]} 46. Rg6+ {[%clk 0:00:08]}  Kh7 {[%clk 0:00:13]} 47. Rg7+ {[%clk 0:00:08]}  Kh8 {[%clk 0:00:13]} 48. Rg8+ {[%clk 0:00:08]}  Kh7 {[%clk 0:00:13]} 49. R3g7+ {[%clk 0:00:09]}  Kh6 {[%clk 0:00:14]} 50. Rg6+ {[%clk 0:00:08]}  Kh7 {[%clk 0:00:14]} 51. R8g7+ {[%clk 0:00:08]}  Kh8 {[%clk 0:00:15]} 52. Rg8+ {[%clk 0:00:09]}  Kh7 {[%clk 0:00:15]} 53. Rg4 {[%clk 0:00:09]}  Qf3+ {[%clk 0:00:15]} 54. Rg3 {[%clk 0:00:08]}  Qf1+ {[%clk 0:00:15]} 55. Rg2 {[%clk 0:00:08]}  Qf5+ {[%clk 0:00:15]} 56. R8g4 {[%clk 0:00:09]}  e4 {[%clk 0:00:16]} 57. Rg3 {[%clk 0:00:07]}  Qf1+ {[%clk 0:00:15]} 58. Rg2 {[%clk 0:00:06]}  e3 {[%clk 0:00:15]} 59. Kg3 {[%clk 0:00:03]}  e2 {[%clk 0:00:14]} 60. Rxe2 {[%clk 0:00:03]}  Qxe2 {[%clk 0:00:15]} 61. Kh3 {[%clk 0:00:03]}  Qf3+ {[%clk 0:00:13]} 62. Rg3 {[%clk 0:00:04]}  Qf5+ {[%clk 0:00:14]} 63. Kg2 {[%clk 0:00:04]}  Qc2+ {[%clk 0:00:14]} 64. Kh3 {[%clk 0:00:05]}  Kh6 {[%clk 0:00:14]} 65. Kg4 {[%clk 0:00:04]}  Qc8+ {[%clk 0:00:14]} 66. Kf3 {[%clk 0:00:04]}  Qb7+ {[%clk 0:00:14]} 67. Kf4 {[%clk 0:00:04]}  Qb8+ {[%clk 0:00:14]} 68. Kf3 {[%clk 0:00:04]}  Kh5 {[%clk 0:00:14]} 69. Ke4 {[%clk 0:00:02]}  Qb4+ {[%clk 0:00:14]} 70. Kd5 {[%clk 0:00:02]}  Kxh4 {[%clk 0:00:14]} 71. Rd3 {[%clk 0:00:02]}  Qb7+ {[%clk 0:00:14]} 72. Kc4 {[%clk 0:00:02]}  Kh5 {[%clk 0:00:15]} 73. h3 {[%clk 0:00:02]}  Qb4+ {[%clk 0:00:15]} 74. Kd5 {[%clk 0:00:02]}  Kh4 {[%clk 0:00:15]} 75. Ke5 {[%clk 0:00:03]}  Kh5 {[%clk 0:00:15]} 76. Kd5 {[%clk 0:00:03]}  Qb5+ {[%clk 0:00:15]} 77. Ke4 {[%clk 0:00:03]}  Kh6 {[%clk 0:00:15]} 78. Ke3 {[%clk 0:00:04]}  Qg5+ {[%clk 0:00:15]} 79. Ke2 {[%clk 0:00:04]}  Qg2+ {[%clk 0:00:15]} 80. Kd1 {[%clk 0:00:05]}  Qf1+ {[%clk 0:00:15]} 81. Kc2 {[%clk 0:00:06]}  Kg5 {[%clk 0:00:15]} 82. Kc3 {[%clk 0:00:06]}  Kf6 {[%clk 0:00:16]} 83. Kc4 {[%clk 0:00:07]}  Ke5 {[%clk 0:00:15]} 84. Kc3 {[%clk 0:00:07]}  Ke4 {[%clk 0:00:15]} 85. Rd4+ {[%clk 0:00:07]}  Ke3 {[%clk 0:00:16]} 86. Rc4 {[%clk 0:00:08]}  Qxh3 {[%clk 0:00:14]} 87. Kb2 {[%clk 0:00:07]}  Qh5 {[%clk 0:00:14]} 88. Ka3 {[%clk 0:00:07]}  Qe5 {[%clk 0:00:13]} 89. Ka4 {[%clk 0:00:07]}  Kd3 {[%clk 0:00:12]} 90. Rc8 {[%clk 0:00:04]}  Qa1+ {[%clk 0:00:12]} 91. Kb5 {[%clk 0:00:04]}  Qa3 {[%clk 0:00:12]} 92. Ka6 {[%clk 0:00:04]}  Qb4 {[%clk 0:00:12]} 93. Rd8+ {[%clk 0:00:05]}  Ke4 {[%clk 0:00:12]} 94. Rh8 {[%clk 0:00:05]}  Kf5 {[%clk 0:00:13]} 95. Rh4 {[%clk 0:00:05]}  Qxh4 {[%clk 0:00:12]} 0-1


[Site "https://www.chess.com"]

[Event "Titled Tuesday Blitz March 14 Late 2023"]
[White "Senft, Sean"]
[Black "Roebers, Eline"]
[WhiteFideId "2044960"]
[BlackFideId "1058401"]
[WhiteElo "1989"]
[BlackElo "2537"]
[Result "0-1"]
[Round "09"]
[TimeControl "180+2"]
[Date "2023.03.14"]
[WhiteClock "0:00:47"]
[BlackClock "0:00:06"]

1. e4 {[%clk 0:02:52]}  Nf6 {[%clk 0:02:56]} 2. Nc3 {[%clk 0:02:50]}  e5 {[%clk 0:02:51]} 3. Nf3 {[%clk 0:02:49]}  Nc6 {[%clk 0:02:48]} 4. Bc4 {[%clk 0:02:46]}  Nxe4 {[%clk 0:02:46]} 5. Nxe4 {[%clk 0:02:46]}  d5 {[%clk 0:02:46]} 6. Bb5 {[%clk 0:02:39]}  dxe4 {[%clk 0:02:40]} 7. Nxe5 {[%clk 0:02:38]}  Qd5 {[%clk 0:02:41]} 8. Nxc6 {[%clk 0:02:30]}  bxc6 {[%clk 0:02:42]} 9. Ba4 {[%clk 0:02:29]}  Bd6 {[%clk 0:02:37]} 10. d3 {[%clk 0:02:13]}  O-O {[%clk 0:02:35]} 11. O-O {[%clk 0:02:07]}  Qe5 {[%clk 0:02:33]} 12. g3 {[%clk 0:02:05]}  exd3 {[%clk 0:02:12]} 13. Bxc6 {[%clk 0:01:59]}  dxc2 {[%clk 0:02:09]} 14. Qxc2 {[%clk 0:01:58]}  Rb8 {[%clk 0:02:07]} 15. Be4 {[%clk 0:01:51]}  Bh3 {[%clk 0:01:58]} 16. Re1 {[%clk 0:01:46]}  g6 {[%clk 0:01:36]} 17. Rb1 {[%clk 0:01:41]}  Qa5 {[%clk 0:01:23]} 18. Bh6 {[%clk 0:01:38]}  Rfe8 {[%clk 0:01:21]} 19. a3 {[%clk 0:01:38]}  Re6 {[%clk 0:01:04]} 20. Bd2 {[%clk 0:01:29]}  Qh5 {[%clk 0:00:46]} 21. Bc6 {[%clk 0:01:20]}  Bc5 {[%clk 0:00:21]} 22. Bf4 {[%clk 0:01:06]}  Rxc6 {[%clk 0:00:11]} 23. b4 {[%clk 0:01:02]}  Qf3 {[%clk 0:00:10]} 24. Qe4 {[%clk 0:00:58]}  Qxe4 {[%clk 0:00:10]} 25. Rxe4 {[%clk 0:00:59]}  Bf5 {[%clk 0:00:10]} 26. Rc1 {[%clk 0:00:46]}  Bxe4 {[%clk 0:00:09]} 27. Be3 {[%clk 0:00:46]}  Bxe3 {[%clk 0:00:06]} 28. fxe3 {[%clk 0:00:46]}  Rxc1+ {[%clk 0:00:05]} 29. Kf2 {[%clk 0:00:46]}  Rc2+ {[%clk 0:00:05]} 30. Ke1 {[%clk 0:00:47]}  Rd8 {[%clk 0:00:06]} 0-1


[Site "https://www.chess.com"]